[Event "MČR juniorů a juniorek v rapid šachu 2024"]
[Site "Hotel Fit Fun, Harrachov, Czech Republic"]
[Date "2024.09.21"]
[Round "6.23"]
[White "Pejrimovsky Tadeas Rubel"]
[Black "Budil Vaclav"]
[Result "1/2-1/2"]
[TimeControl "20+5"]
[WhiteFideId "23709537"]
[BlackFideId "23776226"]
[WhiteElo "1895"]
[BlackElo "1697"]

1. e4 {[%clk 00:20:09]} c5 {[%clk 00:20:09]} {[%emt 00:00:01]} 2. Nc3 {[%clk
00:20:11]} {[%emt 00:00:03]} Nc6 {[%clk 00:20:12]} {[%emt 00:00:01]} 3. f4
{[%clk 00:20:14]} {[%emt 00:00:02]} g6 {[%clk 00:20:14]} {[%emt 00:00:04]} 4.
Nf3 {[%clk 00:20:18]} {[%emt 00:00:02]} d6 {[%clk 00:20:16]} {[%emt 00:00:02]}
5. Bb5 {[%clk 00:20:21]} {[%emt 00:00:02]} Bg4 {[%clk 00:20:19]} {[%emt
00:00:02]} 6. O-O {[%clk 00:20:12]} {[%emt 00:00:14]} Bg7 {[%clk 00:20:21]}
{[%emt 00:00:02]} 7. d3 {[%clk 00:19:57]} {[%emt 00:00:20]} e6 {[%clk
00:20:24]} {[%emt 00:00:02]} 8. Bxc6+ {[%clk 00:19:45]} {[%emt 00:00:18]} bxc6
{[%clk 00:20:27]} {[%emt 00:00:02]} 9. h3 {[%clk 00:18:31]} {[%emt 00:01:19]}
Bxf3 {[%clk 00:20:29]} {[%emt 00:00:02]} 10. Qxf3 {[%clk 00:18:34]} {[%emt
00:00:02]} Ne7 {[%clk 00:20:33]} {[%emt 00:00:02]} 11. f5 {[%clk 00:16:17]}
{[%emt 00:02:21]} exf5 {[%clk 00:17:49]} {[%emt 00:02:49]} 12. exf5 {[%clk
00:15:52]} {[%emt 00:00:30]} f6 {[%clk 00:17:26]} {[%emt 00:00:28]} 13. fxg6
{[%clk 00:14:48]} {[%emt 00:01:09]} hxg6 {[%clk 00:17:22]} {[%emt 00:00:09]} 14.
Ne4 {[%clk 00:13:40]} {[%emt 00:01:13]} Rf8 {[%clk 00:15:17]} {[%emt 00:02:10]}
15. Qg3 {[%clk 00:13:12]} {[%emt 00:00:32]} d5 {[%clk 00:13:17]} {[%emt
00:02:07]} 16. Nxc5 {[%clk 00:13:04]} {[%emt 00:00:13]} Qb6 {[%clk 00:12:43]}
{[%emt 00:00:39]} 17. Be3 {[%clk 00:12:40]} {[%emt 00:00:28]} Qxb2 {[%clk
00:12:10]} {[%emt 00:00:38]} 18. Ne6 {[%clk 00:12:12]} {[%emt 00:00:33]} Kf7
{[%clk 00:12:03]} {[%emt 00:00:13]} 19. Nxf8 {[%clk 00:11:08]} {[%emt
00:01:08]} Rxf8 {[%clk 00:11:54]} {[%emt 00:00:13]} 20. Qf2 {[%clk 00:10:40]}
{[%emt 00:00:32]} Kg8 {[%clk 00:11:17]} {[%emt 00:00:44]} 21. Bc5 {[%clk
00:10:43]} {[%emt 00:00:02]} Re8 {[%clk 00:11:17]} {[%emt 00:00:05]} 22. Rfe1
{[%clk 00:10:45]} {[%emt 00:00:02]} f5 {[%clk 00:11:03]} {[%emt 00:00:20]} 23.
Kh1 {[%clk 00:10:10]} {[%emt 00:00:40]} Qb7 {[%clk 00:10:11]} {[%emt 00:00:58]}
24. Qe2 {[%clk 00:09:33]} {[%emt 00:00:40]} Bxa1 {[%clk 00:09:56]} {[%emt
00:00:21]} 25. Bxe7 {[%clk 00:09:24]} {[%emt 00:00:15]} Qd7 {[%clk 00:09:27]}
{[%emt 00:00:33]} 26. Rxa1 {[%clk 00:08:26]} {[%emt 00:01:02]} Qxe7 {[%clk
00:08:44]} {[%emt 00:00:49]} 27. Qf2 {[%clk 00:08:06]} {[%emt 00:00:24]} Qg7
{[%clk 00:08:17]} {[%emt 00:00:33]} 28. Re1 {[%clk 00:07:21]} {[%emt 00:00:50]}
Rxe1+ {[%clk 00:07:53]} {[%emt 00:00:30]} 29. Qxe1 {[%clk 00:07:24]} {[%emt
00:00:01]} Kf7 {[%clk 00:06:30]} {[%emt 00:01:28]} 30. c3 {[%clk 00:07:26]}
{[%emt 00:00:03]} Qf6 {[%clk 00:06:29]} {[%emt 00:00:06]} 31. d4 {[%clk
00:07:26]} {[%emt 00:00:05]} Qd6 {[%clk 00:05:19]} {[%emt 00:01:15]} 32. g3
{[%clk 00:06:46]} {[%emt 00:00:45]} c5 {[%clk 00:05:15]} {[%emt 00:00:10]} 33.
Kg2 {[%clk 00:05:50]} {[%emt 00:00:59]} Qc7 {[%clk 00:03:44]} {[%emt 00:01:36]}
34. Qd2 {[%clk 00:04:04]} {[%emt 00:01:51]} Qc6 {[%emt 00:00:32]} 35. Qe3
{[%clk 00:03:26]} {[%emt 00:00:42]} cxd4 {[%clk 00:03:04]} {[%emt 00:00:20]} 36.
Qxd4 {[%clk 00:03:26]} {[%emt 00:00:04]} Qb7 {[%clk 00:02:50]} {[%emt
00:00:19]} 37. Kf3 {[%clk 00:03:10]} {[%emt 00:00:21]} g5 {[%clk 00:02:10]}
{[%emt 00:00:45]} 38. a4 {[%clk 00:02:52]} {[%emt 00:00:24]} Ke6 {[%clk
00:01:43]} {[%emt 00:00:31]} 39. Qe3+ {[%clk 00:02:04]} {[%emt 00:00:54]} Kf6
{[%clk 00:01:44]} {[%emt 00:00:04]} 40. Qd4+ {[%clk 00:01:44]} {[%emt
00:00:24]} Ke6 {[%clk 00:01:17]} {[%emt 00:00:32]} 41. Qe3+ {[%clk 00:00:47]}
{[%emt 00:01:02]} Kf6 {[%clk 00:01:20]} {[%emt 00:00:02]} 42. Qd4+ {[%clk
00:00:51]} {[%emt 00:00:01]} 1/2-1/2



[ePGN "0.1;DGT LiveChess/2.2.6"]

[Event "MČR juniorů a juniorek v rapid šachu 2024"]
[Site "Hotel Fit Fun, Harrachov, Czech Republic"]
[Date "2024.09.21"]
[Round "6.24"]
[White "Zadrapova Amalie"]
[Black "Vratil Tomas"]
[Result "1-0"]
[TimeControl "20+5"]
[WhiteFideId "23710276"]
[BlackFideId "23756870"]
[WhiteElo "1891"]
[BlackElo "1671"]

1. e4 {[%clk 00:20:09]} c6 {[%clk 00:20:05]} {[%emt 00:00:05]} 2. d4 {[%clk
00:20:12]} {[%emt 00:00:01]} d5 {[%clk 00:20:09]} {[%emt 00:00:02]} 3. exd5
{[%clk 00:20:16]} {[%emt 00:00:02]} cxd5 {[%clk 00:20:12]} {[%emt 00:00:01]} 4.
c4 {[%clk 00:20:20]} {[%emt 00:00:02]} Nf6 {[%clk 00:20:03]} {[%emt 00:00:14]}
5. Nc3 {[%clk 00:20:22]} {[%emt 00:00:02]} Bf5 {[%clk 00:19:55]} {[%emt
00:00:12]} 6. Bg5 {[%clk 00:18:57]} {[%emt 00:01:31]} e6 {[%clk 00:19:49]}
{[%emt 00:00:11]} 7. Nf3 {[%clk 00:17:53]} {[%emt 00:01:09]} Be7 {[%clk
00:19:44]} {[%emt 00:00:10]} 8. c5 {[%clk 00:17:00]} {[%emt 00:00:59]} O-O
{[%clk 00:19:17]} {[%emt 00:00:31]} 9. Be2 {[%clk 00:16:19]} {[%emt 00:00:46]}
a6 {[%clk 00:19:11]} {[%emt 00:00:12]} 10. O-O {[%clk 00:16:02]} {[%emt
00:00:22]} b6 {[%clk 00:18:53]} {[%emt 00:00:22]} 11. b4 {[%clk 00:15:57]}
{[%emt 00:00:11]} Nc6 {[%clk 00:18:53]} {[%emt 00:00:04]} 12. a3 {[%clk
00:15:44]} {[%emt 00:00:18]} Ne4 {[%clk 00:18:12]} {[%emt 00:00:46]} 13. Bxe7
{[%clk 00:14:53]} {[%emt 00:00:56]} Qxe7 {[%clk 00:18:12]} {[%emt 00:00:05]} 14.
Na4 {[%clk 00:13:08]} {[%emt 00:01:51]} bxc5 {[%clk 00:16:49]} {[%emt
00:01:27]} 15. bxc5 {[%clk 00:12:31]} {[%emt 00:00:43]} Qf6 {[%clk 00:13:29]}
{[%emt 00:03:24]} 16. Re1 {[%clk 00:09:10]} {[%emt 00:03:25]} g5 {[%clk
00:12:33]} {[%emt 00:01:02]} 17. Nb6 {[%clk 00:07:36]} {[%emt 00:01:40]} Ra7
{[%clk 00:12:35]} {[%emt 00:00:02]} 18. Qa4 {[%clk 00:06:55]} {[%emt 00:00:46]}
Ne7 {[%clk 00:09:41]} {[%emt 00:02:59]} 19. Nd7 {[%clk 00:06:16]} {[%emt
00:00:44]} Rxd7 {[%clk 00:07:42]} {[%emt 00:02:05]} 20. Qxd7 {[%clk 00:06:16]}
{[%emt 00:00:05]} g4 {[%clk 00:07:46]} {[%emt 00:00:01]} 21. Ne5 {[%clk
00:05:50]} {[%emt 00:00:31]} Ng6 {[%clk 00:04:51]} {[%emt 00:03:00]} 22. c6
{[%clk 00:04:21]} {[%emt 00:01:34]} Nh4 {[%clk 00:01:28]} {[%emt 00:03:27]} 23.
c7 {[%clk 00:02:53]} {[%emt 00:01:33]} Nxf2 {[%clk 00:01:13]} {[%emt 00:00:20]}
24. c8=Q {[%clk 00:02:20]} {[%emt 00:00:38]} Nh3+ {[%clk 00:00:32]} {[%emt
00:00:46]} 25. gxh3 {[%clk 00:01:58]} {[%emt 00:00:27]} gxh3 {[%clk 00:00:33]}
{[%emt 00:00:04]} 26. Qxf8+ {[%clk 00:01:50]} {[%emt 00:00:13]} Kxf8 {[%clk
00:00:37]} {[%emt 00:00:02]} 27. Qxf7+ {[%clk 00:01:46]} {[%emt 00:00:09]} Qxf7
{[%clk 00:00:40]} {[%emt 00:00:02]} 28. Nxf7 {[%clk 00:01:49]} {[%emt
00:00:02]} 1-0



[ePGN "0.1;DGT LiveChess/2.2.6"]

[Event "MČR juniorů a juniorek v rapid šachu 2024"]
[Site "Hotel Fit Fun, Harrachov, Czech Republic"]
[Date "2024.09.21"]
[Round "6.25"]
[White "Husa Daniel"]
[Black "Martinkovicova Nela"]
[Result "1-0"]
[TimeControl "20+5"]
[WhiteFideId "393487"]
[BlackFideId "23715596"]
[WhiteElo "1866"]
[BlackElo "1446"]

1. d4 {[%clk 00:20:07]} {[%emt 00:00:02]} Nf6 {[%clk 00:20:06]} {[%emt
00:00:03]} 2. Nf3 {[%clk 00:20:10]} {[%emt 00:00:03]} g6 {[%clk 00:20:10]}
{[%emt 00:00:02]} 3. c4 {[%clk 00:20:13]} {[%emt 00:00:03]} Bg7 {[%clk
00:20:13]} 4. g3 {[%clk 00:20:17]} {[%emt 00:00:02]} O-O {[%clk 00:20:16]}
{[%emt 00:00:02]} 5. Bg2 {[%clk 00:20:15]} {[%emt 00:00:06]} d6 {[%clk
00:20:10]} {[%emt 00:00:11]} 6. Nc3 {[%clk 00:20:06]} {[%emt 00:00:13]} Bf5
{[%clk 00:19:40]} {[%emt 00:00:35]} 7. Nh4 {[%clk 00:19:47]} {[%emt 00:00:24]}
Nbd7 {[%clk 00:19:25]} {[%emt 00:00:21]} 8. e4 {[%clk 00:19:02]} {[%emt
00:00:50]} Bxe4 {[%clk 00:18:14]} {[%emt 00:01:16]} 9. Nxe4 {[%clk 00:18:49]}
{[%emt 00:00:17]} e5 {[%clk 00:18:03]} {[%emt 00:00:17]} 10. O-O {[%clk
00:17:36]} {[%emt 00:01:17]} h5 {[%clk 00:17:34]} {[%emt 00:00:34]} 11. Bg5
{[%clk 00:15:49]} {[%emt 00:01:51]} Re8 {[%clk 00:17:10]} {[%emt 00:00:31]} 12.
Re1 {[%clk 00:14:50]} {[%emt 00:01:04]} a6 {[%clk 00:16:40]} {[%emt 00:00:36]}
13. Qf3 {[%clk 00:13:28]} {[%emt 00:01:25]} exd4 {[%clk 00:16:03]} {[%emt
00:00:42]} 14. Nxf6+ {[%emt 00:00:30]} Bxf6 {[%clk 00:15:27]} {[%emt 00:00:22]}
15. Rxe8+ {[%clk 00:13:21]} {[%emt 00:00:07]} Qxe8 {[%clk 00:15:27]} {[%emt
00:00:05]} 16. Bxf6 {[%clk 00:13:22]} {[%emt 00:00:04]} 1-0



[ePGN "0.1;DGT LiveChess/2.2.6"]

[Event "MČR juniorů a juniorek v rapid šachu 2024"]
[Site "Hotel Fit Fun, Harrachov, Czech Republic"]
[Date "2024.09.21"]
[Round "6.26"]
[White "Pes Matej"]
[Black "Dobsa Emma"]
[Result "0-1"]
[TimeControl "20+5"]
[WhiteFideId "23766816"]
[BlackFideId "23709391"]
[WhiteElo "1697"]
[BlackElo "1830"]

1. f4 {[%clk 00:20:07]} {[%emt 00:00:03]} d5 {[%clk 00:20:08]} {[%emt
00:00:02]} 2. Nf3 {[%clk 00:20:09]} {[%emt 00:00:02]} Bg4 {[%clk 00:20:04]}
{[%emt 00:00:09]} 3. e3 {[%clk 00:19:21]} {[%emt 00:00:52]} Nc6 {[%clk
00:19:38]} {[%emt 00:00:31]} 4. d4 {[%clk 00:18:55]} {[%emt 00:00:31]} Nf6
{[%clk 00:19:31]} {[%emt 00:00:12]} 5. Nbd2 {[%clk 00:18:46]} {[%emt 00:00:14]}
e6 {[%clk 00:19:14]} {[%emt 00:00:23]} 6. c3 {[%clk 00:18:37]} {[%emt
00:00:13]} h6 {[%clk 00:18:59]} {[%emt 00:00:21]} 7. Bd3 {[%clk 00:18:28]}
{[%emt 00:00:13]} Qd7 {[%clk 00:18:38]} {[%emt 00:00:27]} 8. O-O {[%clk
00:18:26]} {[%emt 00:00:07]} Bd6 {[%clk 00:17:08]} {[%emt 00:01:35]} 9. Qe1
{[%clk 00:16:46]} {[%emt 00:01:45]} O-O-O {[%clk 00:16:13]} {[%emt 00:01:00]}
10. Ne5 {[%clk 00:15:50]} {[%emt 00:01:00]} Bxe5 {[%clk 00:15:34]} {[%emt
00:00:45]} 11. fxe5 {[%clk 00:15:52]} {[%emt 00:00:02]} Ne8 {[%clk 00:15:16]}
{[%emt 00:00:24]} 12. e4 {[%clk 00:14:55]} {[%emt 00:01:02]} f6 {[%clk
00:14:33]} {[%emt 00:00:48]} 13. exf6 {[%clk 00:13:32]} {[%emt 00:01:28]} gxf6
{[%clk 00:14:06]} {[%emt 00:00:32]} 14. Nb3 {[%clk 00:12:40]} {[%emt 00:00:56]}
e5 {[%clk 00:12:45]} {[%emt 00:01:26]} 15. Nc5 {[%clk 00:11:09]} {[%emt
00:01:35]} Qe7 {[%clk 00:12:16]} {[%emt 00:00:35]} 16. exd5 {[%clk 00:10:53]}
{[%emt 00:00:21]} Rxd5 {[%clk 00:11:58]} {[%emt 00:00:23]} 17. Qe4 {[%clk
00:09:55]} {[%emt 00:01:03]} Be6 {[%clk 00:06:51]} {[%emt 00:05:11]} 18. Nxe6
{[%clk 00:08:29]} {[%emt 00:01:32]} Qxe6 {[%clk 00:06:50]} {[%emt 00:00:06]} 19.
Bc4 {[%clk 00:08:29]} {[%emt 00:00:04]} Ne7 {[%clk 00:06:54]} 20. Bxd5 {[%clk
00:08:18]} {[%emt 00:00:17]} Nxd5 {[%clk 00:06:58]} {[%emt 00:00:02]} 21. Qf5
{[%clk 00:06:33]} {[%emt 00:01:49]} Qxf5 {[%clk 00:07:01]} {[%emt 00:00:02]} 22.
Rxf5 {[%clk 00:06:36]} {[%emt 00:00:02]} Nd6 {[%clk 00:07:03]} {[%emt
00:00:03]} 23. Rh5 {[%clk 00:06:11]} {[%emt 00:00:30]} Nf7 {[%clk 00:07:02]}
{[%emt 00:00:07]} 24. Bd2 {[%clk 00:05:43]} {[%emt 00:00:32]} Ne7 {[%clk
00:06:34]} {[%emt 00:00:33]} 25. dxe5 {[%clk 00:05:18]} {[%emt 00:00:31]} Nxe5
{[%clk 00:06:38]} {[%emt 00:00:01]} 26. Rxh6 {[%clk 00:05:01]} {[%emt
00:00:22]} Rd8 {[%clk 00:06:41]} {[%emt 00:00:02]} 27. Bf4 {[%clk 00:04:36]}
{[%emt 00:00:28]} N5g6 {[%clk 00:06:24]} {[%emt 00:00:24]} 28. Bg3 {[%clk
00:04:14]} {[%emt 00:00:27]} f5 {[%clk 00:06:09]} {[%emt 00:00:20]} 29. Rh7
{[%clk 00:03:43]} {[%emt 00:00:36]} Nd5 {[%clk 00:05:39]} {[%emt 00:00:35]} 30.
c4 {[%clk 00:03:18]} {[%emt 00:00:30]} f4 {[%clk 00:05:42]} {[%emt 00:00:02]}
31. Bh4 {[%clk 00:03:04]} {[%emt 00:00:18]} Nxh4 {[%clk 00:05:36]} {[%emt
00:00:11]} 32. Rxh4 {[%clk 00:03:08]} {[%emt 00:00:02]} Ne3 {[%clk 00:05:21]}
{[%emt 00:00:20]} 33. Rxf4 {[%clk 00:03:06]} {[%emt 00:00:08]} Rd2 {[%clk
00:05:24]} {[%emt 00:00:01]} 34. Re1 {[%clk 00:02:27]} {[%emt 00:00:44]} Nxg2
{[%clk 00:05:05]} {[%emt 00:00:24]} 35. Rf8+ {[%clk 00:02:30]} {[%emt
00:00:01]} Kd7 {[%clk 00:05:08]} {[%emt 00:00:03]} 36. Ree8 {[%clk 00:02:34]}
Rxb2 {[%clk 00:04:51]} {[%emt 00:00:23]} 37. Rd8+ {[%clk 00:02:27]} {[%emt
00:00:11]} Kc6 {[%clk 00:04:55]} {[%emt 00:00:01]} 38. Rf2 {[%clk 00:02:25]}
{[%emt 00:00:07]} Rxf2 {[%clk 00:04:47]} {[%emt 00:00:13]} 39. Kxf2 {[%clk
00:02:28]} {[%emt 00:00:02]} Nf4 {[%clk 00:04:51]} {[%emt 00:00:01]} 40. Kg3
{[%clk 00:02:11]} {[%emt 00:00:22]} Nh5+ {[%clk 00:04:50]} {[%emt 00:00:05]} 41.
Kg4 {[%clk 00:02:10]} {[%emt 00:00:06]} Nf6+ {[%clk 00:04:54]} {[%emt
00:00:02]} 42. Kf5 {[%clk 00:02:03]} {[%emt 00:00:13]} Nd7 {[%clk 00:04:51]}
{[%emt 00:00:07]} 43. Rxd7 {[%clk 00:02:06]} {[%emt 00:00:02]} Kxd7 {[%clk
00:04:55]} {[%emt 00:00:02]} 44. Kf6 {[%clk 00:02:02]} {[%emt 00:00:08]} c5
{[%clk 00:04:48]} {[%emt 00:00:12]} 45. h4 {[%clk 00:02:04]} {[%emt 00:00:02]}
b5 {[%clk 00:04:52]} {[%emt 00:00:02]} 46. h5 {[%clk 00:01:52]} {[%emt
00:00:17]} bxc4 {[%clk 00:04:56]} {[%emt 00:00:01]} 47. h6 {[%clk 00:01:55]}
{[%emt 00:00:02]} c3 {[%clk 00:04:59]} 48. h7 {[%clk 00:01:56]} {[%emt
00:00:04]} c2 {[%clk 00:05:03]} {[%emt 00:00:02]} 49. h8=Q {[%clk 00:01:58]}
{[%emt 00:00:02]} c1=Q {[%clk 00:05:06]} {[%emt 00:00:02]} 50. Qg7+ {[%clk
00:01:52]} {[%emt 00:00:11]} Kc6 {[%clk 00:04:40]} {[%emt 00:00:32]} 51. Qg2+
{[%clk 00:01:48]} {[%emt 00:00:07]} Kb6 {[%clk 00:04:39]} {[%emt 00:00:07]} 52.
Ke5 {[%clk 00:01:48]} {[%emt 00:00:05]} Qe3+ {[%clk 00:04:39]} {[%emt
00:00:06]} 53. Kd6 {[%clk 00:01:38]} {[%emt 00:00:15]} Qd4 {[%clk 00:04:18]}
{[%emt 00:00:26]} 54. Ke6 {[%clk 00:01:39]} {[%emt 00:00:03]} Qc4 {[%clk
00:04:17]} {[%emt 00:00:06]} 55. Ke5 {[%clk 00:01:39]} {[%emt 00:00:05]} Qb5
{[%clk 00:03:31]} {[%emt 00:00:52]} 56. Qg8 {[%clk 00:01:17]} {[%emt 00:00:27]}
Qb2+ {[%clk 00:02:59]} {[%emt 00:00:37]} 57. Ke4 {[%clk 00:01:01]} {[%emt
00:00:20]} Qe2+ {[%clk 00:03:00]} {[%emt 00:00:05]} 58. Kf4 {[%clk 00:01:03]}
{[%emt 00:00:03]} Qf2+ {[%clk 00:02:57]} {[%emt 00:00:08]} 59. Ke4 {[%clk
00:01:05]} {[%emt 00:00:02]} Qe2+ {[%clk 00:02:57]} {[%emt 00:00:06]} 60. Kf4
{[%clk 00:01:06]} {[%emt 00:00:04]} Qf2+ {[%clk 00:02:33]} {[%emt 00:00:29]} 61.
Ke4 {[%clk 00:01:09]} {[%emt 00:00:01]} Qd4+ {[%clk 00:02:36]} {[%emt
00:00:02]} 62. Kf3 {[%clk 00:00:57]} {[%emt 00:00:18]} Qf6+ {[%clk 00:02:27]}
{[%emt 00:00:14]} 63. Ke3 {[%clk 00:00:42]} {[%emt 00:00:20]} Qe7+ {[%clk
00:02:23]} {[%emt 00:00:08]} 64. Kd2 {[%clk 00:00:45]} {[%emt 00:00:03]} Qd6+
{[%clk 00:02:22]} {[%emt 00:00:05]} 65. Kc2 {[%clk 00:00:44]} {[%emt 00:00:05]}
Ka5 {[%clk 00:02:06]} {[%emt 00:00:21]} 66. Qh7 {[%clk 00:00:30]} {[%emt
00:00:19]} a6 {[%clk 00:01:55]} {[%emt 00:00:17]} 67. Qg7 {[%clk 00:00:24]}
{[%emt 00:00:10]} Qh2+ {[%clk 00:01:34]} {[%emt 00:00:26]} 68. Kb3 {[%clk
00:00:27]} {[%emt 00:00:02]} Qh3+ {[%clk 00:01:34]} {[%emt 00:00:05]} 69. Kc2
{[%clk 00:00:30]} {[%emt 00:00:02]} Qf5+ {[%clk 00:01:36]} {[%emt 00:00:03]} 70.
Kc3 {[%clk 00:00:29]} {[%emt 00:00:06]} Qf4 {[%clk 00:00:54]} {[%emt 00:00:46]}
71. Qb7 {[%clk 00:00:27]} {[%emt 00:00:07]} Qb4+ {[%clk 00:00:43]} {[%emt
00:00:17]} 72. Qxb4+ {[%clk 00:00:27]} {[%emt 00:00:05]} cxb4+ {[%clk
00:00:46]} {[%emt 00:00:01]} 73. Kb3 {[%clk 00:00:31]} {[%emt 00:00:02]} Kb5
{[%clk 00:00:49]} {[%emt 00:00:01]} 74. Kb2 {[%clk 00:00:34]} {[%emt 00:00:03]}
Ka4 {[%clk 00:00:49]} {[%emt 00:00:05]} 75. Kb1 {[%clk 00:00:16]} {[%emt
00:00:23]} Ka3 {[%clk 00:00:48]} {[%emt 00:00:06]} 76. Ka1 {[%clk 00:00:20]}
{[%emt 00:00:01]} a5 {[%clk 00:00:36]} {[%emt 00:00:17]} 77. Kb1 {[%clk
00:00:23]} {[%emt 00:00:01]} a4 {[%clk 00:00:29]} {[%emt 00:00:12]} 78. Ka1
{[%clk 00:00:23]} {[%emt 00:00:05]} b3 {[%clk 00:00:33]} {[%emt 00:00:01]} 0-1



[ePGN "0.1;DGT LiveChess/2.2.6"]

[Event "MČR juniorů a juniorek v rapid šachu 2024"]
[Site "Hotel Fit Fun, Harrachov, Czech Republic"]
[Date "2024.09.21"]
[Round "6.27"]
[White "Marxova Sarka"]
[Black "Stastna Martina"]
[Result "0-1"]
[TimeControl "20+5"]
[WhiteFideId "23701862"]
[BlackFideId "385123"]
[WhiteElo "1684"]
[BlackElo "1801"]

1. e4 {[%clk 00:20:08]} {[%emt 00:00:02]} e5 {[%clk 00:20:09]} {[%emt
00:00:01]} 2. Nf3 {[%clk 00:20:10]} {[%emt 00:00:03]} Nc6 {[%clk 00:20:13]}
{[%emt 00:00:02]} 3. Bb5 {[%clk 00:20:10]} {[%emt 00:00:05]} a6 {[%clk
00:20:16]} {[%emt 00:00:01]} 4. Ba4 {[%clk 00:20:13]} {[%emt 00:00:02]} Nf6
{[%clk 00:20:20]} {[%emt 00:00:01]} 5. O-O {[%clk 00:20:13]} {[%emt 00:00:05]}
b5 {[%clk 00:20:24]} {[%emt 00:00:02]} 6. Bb3 {[%clk 00:20:15]} {[%emt
00:00:03]} Be7 {[%clk 00:20:26]} {[%emt 00:00:02]} 7. Re1 {[%clk 00:20:15]}
{[%emt 00:00:05]} d6 {[%clk 00:20:27]} {[%emt 00:00:05]} 8. c3 {[%clk
00:20:09]} {[%emt 00:00:10]} O-O {[%clk 00:20:20]} {[%emt 00:00:12]} 9. d4
{[%clk 00:20:01]} {[%emt 00:00:13]} exd4 {[%clk 00:19:39]} {[%emt 00:00:47]} 10.
cxd4 {[%clk 00:20:00]} {[%emt 00:00:06]} Bg4 {[%clk 00:19:09]} {[%emt
00:00:34]} 11. d5 {[%clk 00:18:39]} {[%emt 00:01:26]} Ne5 {[%clk 00:19:09]}
{[%emt 00:00:05]} 12. Nbd2 {[%clk 00:18:42]} {[%emt 00:00:03]} h6 {[%clk
00:17:57]} {[%emt 00:01:16]} 13. h3 {[%clk 00:18:22]} {[%emt 00:00:25]} Bh5
{[%clk 00:18:01]} 14. Re3 {[%clk 00:18:17]} {[%emt 00:00:10]} Nh7 {[%clk
00:17:18]} {[%emt 00:00:47]} 15. Qc2 {[%clk 00:17:24]} {[%emt 00:00:59]} Bf6
{[%clk 00:15:16]} {[%emt 00:02:07]} 16. a3 {[%clk 00:15:37]} {[%emt 00:01:52]}
Qd7 {[%clk 00:13:55]} {[%emt 00:01:26]} 17. Ba2 {[%clk 00:15:04]} {[%emt
00:00:39]} Rac8 {[%clk 00:13:30]} {[%emt 00:00:29]} 18. Rb1 {[%clk 00:14:28]}
{[%emt 00:00:42]} c5 {[%clk 00:12:15]} {[%emt 00:01:19]} 19. b3 {[%clk
00:13:05]} {[%emt 00:01:28]} Ng5 {[%emt 00:02:10]} 20. Kh2 {[%clk 00:10:20]}
{[%emt 00:02:35]} Nexf3+ {[%clk 00:10:09]} {[%emt 00:00:22]} 21. Nxf3 {[%clk
00:10:17]} {[%emt 00:00:07]} Bxf3 {[%clk 00:10:11]} {[%emt 00:00:03]} 22. Rxf3
{[%clk 00:10:00]} {[%emt 00:00:22]} Nxf3+ {[%clk 00:09:32]} {[%emt 00:00:44]}
23. gxf3 {[%clk 00:10:01]} {[%emt 00:00:05]} Rfe8 {[%clk 00:09:19]} {[%emt
00:00:17]} 24. Bb2 {[%clk 00:09:01]} {[%emt 00:01:06]} Bxb2 {[%clk 00:08:45]}
{[%emt 00:00:39]} 25. Qxb2 {[%clk 00:09:03]} {[%emt 00:00:02]} Re5 {[%clk
00:08:43]} {[%emt 00:00:07]} 26. Rg1 {[%clk 00:09:00]} {[%emt 00:00:07]} f6
{[%clk 00:08:43]} {[%emt 00:00:07]} 27. Rg3 {[%clk 00:08:52]} {[%emt 00:00:13]}
Rce8 {[%clk 00:08:19]} {[%emt 00:00:28]} 28. Qd2 {[%emt 00:01:03]} Rg5 {[%clk
00:07:38]} {[%emt 00:00:02]} 29. Bb1 {[%clk 00:08:04]} {[%emt 00:00:39]} Rxg3
{[%clk 00:06:59]} {[%emt 00:00:45]} 30. fxg3 {[%clk 00:08:04]} {[%emt
00:00:05]} c4 {[%clk 00:06:42]} {[%emt 00:00:22]} 31. bxc4 {[%clk 00:07:50]}
{[%emt 00:00:19]} bxc4 {[%clk 00:06:46]} 32. Qc3 {[%clk 00:07:44]} {[%emt
00:00:08]} Qb5 {[%clk 00:06:34]} {[%emt 00:00:19]} 33. Ba2 {[%clk 00:07:11]}
{[%emt 00:00:38]} Rc8 {[%clk 00:06:34]} {[%emt 00:00:05]} 34. Kg2 {[%clk
00:05:58]} {[%emt 00:01:18]} Qc5 {[%clk 00:06:14]} {[%emt 00:00:24]} 35. h4
{[%clk 00:05:36]} {[%emt 00:00:29]} a5 {[%clk 00:06:16]} {[%emt 00:00:03]} 36.
f4 {[%clk 00:05:20]} {[%emt 00:00:20]} f5 {[%clk 00:05:55]} {[%emt 00:00:26]}
37. Bb1 {[%clk 00:04:33]} {[%emt 00:00:52]} Rb8 {[%clk 00:05:39]} {[%emt
00:00:21]} 38. Ba2 {[%clk 00:03:48]} {[%emt 00:00:50]} fxe4 {[%clk 00:05:38]}
{[%emt 00:00:06]} 39. Qxc4 {[%clk 00:03:34]} {[%emt 00:00:19]} Rb2+ {[%clk
00:05:41]} {[%emt 00:00:03]} 40. Kh1 {[%clk 00:03:11]} {[%emt 00:00:26]} Qxc4
{[%clk 00:04:22]} {[%emt 00:01:25]} 41. Bxc4 {[%clk 00:03:14]} {[%emt
00:00:03]} Rb1+ {[%clk 00:03:52]} {[%emt 00:00:35]} 42. Kg2 {[%clk 00:03:10]}
{[%emt 00:00:07]} Ra1 {[%clk 00:03:56]} {[%emt 00:00:02]} 43. Kf2 {[%clk
00:02:56]} {[%emt 00:00:19]} Rxa3 {[%clk 00:03:59]} {[%emt 00:00:02]} 44. g4
{[%clk 00:02:52]} {[%emt 00:00:09]} Rf3+ {[%clk 00:03:51]} {[%emt 00:00:13]} 45.
Kg2 {[%clk 00:02:47]} {[%emt 00:00:10]} Rxf4 {[%clk 00:03:50]} {[%emt
00:00:06]} 46. Kg3 {[%clk 00:02:05]} {[%emt 00:00:47]} Rf3+ {[%clk 00:03:54]}
{[%emt 00:00:01]} 47. Kg2 {[%clk 00:02:08]} {[%emt 00:00:02]} a4 {[%clk
00:03:56]} {[%emt 00:00:03]} 48. Ba2 {[%clk 00:02:00]} {[%emt 00:00:13]} a3
{[%clk 00:03:45]} {[%emt 00:00:17]} 49. g5 {[%clk 00:01:51]} {[%emt 00:00:13]}
Rd3 {[%clk 00:03:43]} {[%emt 00:00:06]} 50. Bb1 {[%clk 00:01:34]} {[%emt
00:00:23]} Rd2+ {[%clk 00:03:35]} {[%emt 00:00:14]} 51. Kg3 {[%clk 00:01:29]}
{[%emt 00:00:09]} Rb2 {[%clk 00:03:31]} {[%emt 00:00:09]} 52. Bxe4 {[%clk
00:01:27]} {[%emt 00:00:07]} a2 {[%clk 00:03:35]} {[%emt 00:00:01]} 0-1



[ePGN "0.1;DGT LiveChess/2.2.6"]